Workbook

Sheet summary (auto)
B2: 3 view test case
C4: video 0 | D4: video 1 | E4: video 2 | F4: video PSNR / video bitrate | G4: video PSNR / total bitrate | H4: synth PSNR / total bitrate | I4: enc time | J4: dec time | K4: ren time
B5: ='experimental data'!B3 -> Balloons | C5: ='experimental data'!U3 -> 0 | D5: ='experimental data'!U7 -> -0.007884658972 | E5: ='experimental data'!U11 -> -0.008388316965 | F5: ='experimental data'!U434 -> -0.003272087482 | G5: =bdrate('experimental data'!E450:E453,'experimental data'!F434:F437,'experimental data'!M450:M453,'experimental data'!N434:N437) -> -0.003211632961 | H5: ='experimental data'!U442 -> -0.00243235555 | I5: ='experimental data'!Y51 -> 0.9952958365 | J5: ='experimental data'!Z51 -> 0.9587075856 | K5: ='experimental data'!AA51 -> 0.9987823354
B6: ='experimental data'!B55 -> Kendo | C6: ='experimental data'!U55 -> 0 | D6: ='experimental data'!U59 -> -0.006481977706 | E6: ='experimental data'!U63 -> -0.01344036152 | F6: ='experimental data'!U458 -> -0.003752745959 | G6: =bdrate('experimental data'!E474:E477,'experimental data'!F458:F461,'experimental data'!M474:M477,'experimental data'!N458:N461) -> -0.00296542163 | H6: ='experimental data'!U466 -> -0.001100318909 | I6: ='experimental data'!Y103 -> 0.9856582174 | J6: ='experimental data'!Z103 -> 1.003392372 | K6: ='experimental data'!AA103 -> 0.9983076993
B7: ='experimental data'!B107 -> Newspaper_CC | C7: ='experimental data'!U107 -> 0 | D7: ='experimental data'!U111 -> 0.0001042919201 | E7: ='experimental data'!U115 -> -0.00555907414 | F7: ='experimental data'!U482 -> -0.001192795656 | G7: =bdrate('experimental data'!E498:E501,'experimental data'!F482:F485,'experimental data'!M498:M501,'experimental data'!N482:N485) -> -0.0006849152584 | H7: ='experimental data'!U490 -> -0.001268121404 | I7: ='experimental data'!Y155 -> 0.9978032682 | J7: ='experimental data'!Z155 -> 0.9454495868 | K7: ='experimental data'!AA155 -> 0.973605446
B8: ='experimental data'!B159 -> GT_Fly | C8: ='experimental data'!U159 -> 0 | D8: ='experimental data'!U163 -> -0.0001885899983 | E8: ='experimental data'!U167 -> -0.0002702139787 | F8: ='experimental data'!U506 -> -5.383317259e-05 | G8: =bdrate('experimental data'!E522:E525,'experimental data'!F506:F509,'experimental data'!M522:M525,'experimental data'!N506:N509) -> -0.0001710338588 | H8: ='experimental data'!U514 -> -0.0002826080321 | I8: ='experimental data'!Y207 -> 0.9950787552 | J8: ='experimental data'!Z207 -> 0.9993195124 | K8: ='experimental data'!AA207 -> 0.9965913155
B9: ='experimental data'!B211 -> Poznan_Hall2 | C9: ='experimental data'!U211 -> 0 | D9: ='experimental data'!U215 -> -0.00910214678 | E9: ='experimental data'!U219 -> -0.02457146172 | F9: ='experimental data'!U530 -> -0.006691290892 | G9: =bdrate('experimental data'!E546:E549,'experimental data'!F530:F533,'experimental data'!M546:M549,'experimental data'!N530:N533) -> -0.006216379318 | H9: ='experimental data'!U538 -> -0.004735027943 | I9: ='experimental data'!Y259 -> 0.9941676014 | J9: ='experimental data'!Z259 -> 0.9909571355 | K9: ='experimental data'!AA259 -> 0.9968688934
B10: ='experimental data'!B263 -> Poznan_Street | C10: ='experimental data'!U263 -> 0 | D10: ='experimental data'!U267 -> -0.0003596620244 | E10: ='experimental data'!U271 -> -0.005169834752 | F10: ='experimental data'!U554 -> -0.0008124091998 | G10: =bdrate('experimental data'!E570:E573,'experimental data'!F554:F557,'experimental data'!M570:M573,'experimental data'!N554:N557) -> -0.0006614094881 | H10: ='experimental data'!U562 -> 7.632062146e-05 | I10: ='experimental data'!Y311 -> 0.9833363522 | J10: ='experimental data'!Z311 -> 0.9938651179 | K10: ='experimental data'!AA311 -> 0.998144089
B11: ='experimental data'!B315 -> Undo_Dancer | C11: ='experimental data'!U315 -> 0 | D11: ='experimental data'!U319 -> -0.0004969813967 | E11: ='experimental data'!U323 -> -9.187689799e-05 | F11: ='experimental data'!U578 -> -8.347435486e-05 | G11: =bdrate('experimental data'!E594:E597,'experimental data'!F578:F581,'experimental data'!M594:M597,'experimental data'!N578:N581) -> -3.024763029e-05 | H11: ='experimental data'!U586 -> 7.138427935e-05 | I11: ='experimental data'!Y363 -> 1.006585536 | J11: ='experimental data'!Z363 -> 0.9964643437 | K11: ='experimental data'!AA363 -> 1.000501469
B12: 1024x768 | C12: =AVERAGE(C5:C7) -> 0 | D12: -0.004754114919 | E12: -0.009129250876 | F12: -0.002739209699 | G12: -0.002287323283 | H12: -0.001600265288 | I12: 0.9929191074 | J12: 0.9691831816 | K12: 0.9902318269
B13: 1920x1088 | C13: =AVERAGE(C8:C11) -> 0 | D13: -0.00253684505 | E13: -0.007525846837 | F13: -0.001910251905 | G13: -0.001769767574 | H13: -0.001217482769 | I13: 0.9947920611 | J13: 0.9951515274 | K13: 0.9980264416
B14: average | C14: =AVERAGE(C5:C11) -> 0 | D14: -0.003487103565 | E14: -0.008213019997 | F14: -0.002265519531 | G14: -0.001991577163 | H14: -0.00138153242 | I14: 0.9939893667 | J14: 0.9840222363 | K14: 0.9946858925
B16: ='experimental data'!B598 -> Shark | C16: ='experimental data'!U367 ->  | D16: ='experimental data'!U371 ->  | E16: ='experimental data'!U375 ->  | F16: ='experimental data'!U602 ->  | G16: =bdrate('experimental data'!E618:E621,'experimental data'!F602:F605,'experimental data'!M618:M621,'experimental data'!N602:N605) ->  | H16: ='experimental data'!U610 ->  | I16: ='experimental data'!Y415 ->  | J16: ='experimental data'!Z415 ->  | K16: ='experimental data'!AA415 -> 
B18: 2 view test case (extracted from 3 view data)
C20: video 0 | D20: video 1 | E20: video PSNR / video bitrate | F20: video PSNR / total bitrate | G20: synth PSNR / total bitrate
B21: ='experimental data'!B3 -> Balloons | C21: ='experimental data'!U3 -> 0 | D21: ='experimental data'!U7 -> -0.007884658972 | E21: ='experimental data'!U430 -> -0.001891867317 | F21: =bdrate('experimental data'!E446:E449,'experimental data'!F430:F433,'experimental data'!M446:M449,'experimental data'!N430:N433) -> -0.001834190588 | G21: ='experimental data'!U438 -> -0.001821778249
B22: ='experimental data'!B55 -> Kendo | C22: ='experimental data'!U55 -> 0 | D22: ='experimental data'!U59 -> -0.006481977706 | E22: ='experimental data'!U454 -> -0.001458893026 | F22: =bdrate('experimental data'!E470:E473,'experimental data'!F454:F457,'experimental data'!M470:M473,'experimental data'!N454:N457) -> -0.0009851803408 | G22: ='experimental data'!U462 -> 0.001032938072
B23: ='experimental data'!B107 -> Newspaper_CC | C23: ='experimental data'!U107 -> 0 | D23: ='experimental data'!U111 -> 0.0001042919201 | E23: ='experimental data'!U478 -> 1.885125854e-05 | F23: =bdrate('experimental data'!E494:E497,'experimental data'!F478:F481,'experimental data'!M494:M497,'experimental data'!N478:N481) -> 0.0002070685889 | G23: ='experimental data'!U486 -> -0.00147108736
B24: ='experimental data'!B159 -> GT_Fly | C24: ='experimental data'!U159 -> 0 | D24: ='experimental data'!U163 -> -0.0001885899983 | E24: ='experimental data'!U502 -> -2.2174709e-05 | F24: =bdrate('experimental data'!E518:E521,'experimental data'!F502:F505,'experimental data'!M518:M521,'experimental data'!N502:N505) -> -0.0001526293559 | G24: ='experimental data'!U510 -> -0.000345824543
B25: ='experimental data'!B211 -> Poznan_Hall2 | C25: ='experimental data'!U211 -> 0 | D25: ='experimental data'!U215 -> -0.00910214678 | E25: ='experimental data'!U526 -> -0.002093995164 | F25: =bdrate('experimental data'!E542:E545,'experimental data'!F526:F529,'experimental data'!M542:M545,'experimental data'!N526:N529) -> -0.002316681888 | G25: ='experimental data'!U534 -> -0.002720899227
B26: ='experimental data'!B263 -> Poznan_Street | C26: ='experimental data'!U263 -> 0 | D26: ='experimental data'!U267 -> -0.0003596620244 | E26: ='experimental data'!U550 -> 0.0001809230742 | F26: =bdrate('experimental data'!E566:E569,'experimental data'!F550:F553,'experimental data'!M566:M569,'experimental data'!N550:N553) -> 0.0002687326517 | G26: ='experimental data'!U558 -> 0.0007974592822
B27: ='experimental data'!B315 -> Undo_Dancer | C27: ='experimental data'!U315 -> 0 | D27: ='experimental data'!U319 -> -0.0004969813967 | E27: ='experimental data'!U574 -> -8.477034674e-05 | F27: =bdrate('experimental data'!E590:E593,'experimental data'!F574:F577,'experimental data'!M590:M593,'experimental data'!N574:N577) -> -7.231587747e-05 | G27: ='experimental data'!U582 -> -0.0002512717489
B28: 1024x768 | C28: =AVERAGE(C21:C23) -> 0 | D28: =AVERAGE(D21:D23) -> -0.004754114919 | E28: =AVERAGE(E21:E23) -> -0.001110636362 | F28: =AVERAGE(F21:F23) -> -0.0008707674465 | G28: =AVERAGE(G21:G23) -> -0.0007533091792
B29: 1920x1088 | C29: =AVERAGE(C24:C27) -> 0 | D29: =AVERAGE(D24:D27) -> -0.00253684505 | E29: =AVERAGE(E24:E27) -> -0.0005050042865 | F29: =AVERAGE(F24:F27) -> -0.0005682236175 | G29: =AVERAGE(G24:G27) -> -0.0006301340592
B30: average | C30: =AVERAGE(C21:C27) -> 0 | D30: =AVERAGE(D21:D27) -> -0.003487103565 | E30: =AVERAGE(E21:E27) -> -0.0007645608901 | F30: =AVERAGE(F21:F27) -> -0.0006978852585 | G30: =AVERAGE(G21:G27) -> -0.0006829233963
B32: ='experimental data'!B598 -> Shark | C32: ='experimental data'!U367 ->  | D32: ='experimental data'!U371 ->  | E32: ='experimental data'!U598 ->  | F32: =bdrate('experimental data'!E614:E617,'experimental data'!F598:F601,'experimental data'!M614:M617,'experimental data'!N598:N601) ->  | G32: ='experimental data'!U606 -> 

Sheet experimental data
E1: Reference | M1: Tested | U1: BD-rate (piecewise cubic) | Y1: Time ratio
A2: Class | B2: Sequence | C2: component | D2: QPISlice(V0) | E2: kbps | F2: Y-PSNR | G2: U-PSNR | H2: V-PSNR | I2: Enc T [s] | J2: Dec T [s] | K2: Ren T [s] | M2: kbps | N2: Y-PSNR | O2: U-PSNR | P2: V-PSNR | Q2: Enc T [s] | R2: Dec T [s] | S2: Ren T [s] | U2: Y | V2: U | W2: V | Y2: Enc | Z2: Dec | AA2: Ren
A3: 1024x768 | B3: Balloons | C3: video 0 | D3: 25 | E3: 878.0384 | F3: 43.092 | G3: 43.4139 | H3: 43.9772 | M3: 878.0384 | N3: 43.092 | O3: 43.4139 | P3: 43.9772 | U3: =bdrate($E3:$E6,F3:F6,$M3:$M6,N3:N6) -> 0 | V3: =bdrate($E3:$E6,G3:G6,$M3:$M6,O3:O6) -> 0 | W3: =bdrate($E3:$E6,H3:H6,$M3:$M6,P3:P6) -> 0
D4: 30 | E4: 481.0768 | F4: 41.0452 | G4: 42.1431 | H4: 42.3318 | M4: 481.0768 | N4: 41.0452 | O4: 42.1431 | P4: 42.3318
D5: 35 | E5: 277.5664 | F5: 38.4599 | G5: 40.6674 | H5: 40.5284 | M5: 277.5664 | N5: 38.4599 | O5: 40.6674 | P5: 40.5284
D6: 40 | E6: 168.0256 | F6: 35.6385 | G6: 39.5617 | H6: 39.233 | M6: 168.0256 | N6: 35.6385 | O6: 39.5617 | P6: 39.233
C7: video 1 | D7: 25 | E7: 290.952 | F7: 42.2629 | G7: 43.1145 | H7: 43.1366 | M7: 287.6584 | N7: 42.2658 | O7: 43.1157 | P7: 43.133 | U7: =bdrate($E7:$E10,F7:F10,$M7:$M10,N7:N10) -> -0.007884658972 | V7: =bdrate($E7:$E10,G7:G10,$M7:$M10,O7:O10) -> 0.002478762231 | W7: =bdrate($E7:$E10,H7:H10,$M7:$M10,P7:P10) -> -0.005400212897
D8: 30 | E8: 136.2968 | F8: 39.9591 | G8: 41.8397 | H8: 41.5428 | M8: 135.1488 | N8: 39.9624 | O8: 41.8315 | P8: 41.5472
D9: 35 | E9: 73.8016 | F9: 37.3614 | G9: 40.62 | H9: 40.0684 | M9: 73.4264 | N9: 37.3639 | O9: 40.5852 | P9: 40.0599
D10: 40 | E10: 40.1888 | F10: 34.6164 | G10: 39.5331 | H10: 38.8536 | M10: 39.9448 | N10: 34.6214 | O10: 39.5045 | P10: 38.8291
C11: video 2 | D11: 25 | E11: 320.7136 | F11: 41.9327 | G11: 42.57 | H11: 42.8732 | M11: 318.3312 | N11: 41.9373 | O11: 42.5561 | P11: 42.8755 | U11: =bdrate($E11:$E14,F11:F14,$M11:$M14,N11:N14) -> -0.008388316965 | V11: =bdrate($E11:$E14,G11:G14,$M11:$M14,O11:O14) -> 0.009347061974 | W11: =bdrate($E11:$E14,H11:H14,$M11:$M14,P11:P14) -> -0.00674972352
D12: 30 | E12: 149.448 | F12: 39.7139 | G12: 41.2519 | H12: 41.3125 | M12: 148.4448 | N12: 39.718 | O12: 41.232 | P12: 41.3207
D13: 35 | E13: 81.116 | F13: 37.1493 | G13: 40.1284 | H13: 39.8833 | M13: 80.6496 | N13: 37.1619 | O13: 40.0844 | P13: 39.8756
D14: 40 | E14: 44.424 | F14: 34.4273 | G14: 39.0494 | H14: 38.6309 | M14: 44.012 | N14: 34.4233 | O14: 39.0138 | P14: 38.6216
C15: depth 0 | D15: 34 | E15: 116.4344 | F15: 39.6411 | M15: 116.4344 | N15: 39.6411 | U15: =bdrate($E15:$E18,F15:F18,$M15:$M18,N15:N18) -> 0
D16: 39 | E16: 39.4928 | F16: 36.2894 | M16: 39.4928 | N16: 36.2894
D17: 42 | E17: 17.316 | F17: 33.8022 | M17: 17.316 | N17: 33.8022
D18: 45 | E18: 8.5784 | F18: 31.3531 | M18: 8.5784 | N18: 31.3531
C19: depth 1 | D19: 34 | E19: 86.9744 | F19: 37.5569 | M19: 87.4288 | N19: 37.5731 | U19: =bdrate($E19:$E22,F19:F22,$M19:$M22,N19:N22) -> -0.003472019643
D20: 39 | E20: 28.9384 | F20: 34.3318 | M20: 28.8848 | N20: 34.3161
D21: 42 | E21: 12.624 | F21: 31.7103 | M21: 12.6168 | N21: 31.7607
D22: 45 | E22: 6.1728 | F22: 29.0916 | M22: 6.0504 | N22: 28.9948
C23: depth 2 | D23: 34 | E23: 96.8384 | F23: 36.8801 | M23: 96.6352 | N23: 36.8769 | U23: =bdrate($E23:$E26,F23:F26,$M23:$M26,N23:N26) -> 0.003072401779
D24: 39 | E24: 31.4904 | F24: 33.5332 | M24: 31.4944 | N24: 33.5109
D25: 42 | E25: 13.9288 | F25: 30.8978 | M25: 13.8368 | N25: 30.8425
D26: 45 | E26: 6.6944 | F26: 27.8332 | M26: 6.576 | N26: 27.8448 | O26: 97.06 | P26: 97.06
C27: syn 0.25 | D27: 25 | F27: 42.3267 | G27: 45.3529 | H27: 45.1019 | N27: 42.3362 | O27: 45.3588 | P27: 45.0905
D28: 30 | F28: 40.1271 | G28: 43.7108 | H28: 43.1632 | N28: 40.1338 | O28: 43.7261 | P28: 43.1444
D29: 35 | F29: 37.6377 | G29: 42.1016 | H29: 41.3529 | N29: 37.6377 | O29: 42.0875 | P29: 41.313
D30: 40 | F30: 34.9439 | G30: 40.7746 | H30: 39.9177 | N30: 34.9431 | O30: 40.7518 | P30: 39.8792
C31: syn 0.50 | D31: 25 | F31: 42.9087 | G31: 45.9681 | H31: 45.786 | N31: 42.9127 | O31: 45.9585 | P31: 45.771
D32: 30 | F32: 40.6063 | G32: 44.2237 | H32: 43.7141 | N32: 40.6148 | O32: 44.2127 | P32: 43.6959
D33: 35 | F33: 38.0477 | G33: 42.4109 | H33: 41.6944 | N33: 38.0391 | O33: 42.3858 | P33: 41.6614
D34: 40 | F34: 35.2871 | G34: 40.998 | H34: 40.1809 | N34: 35.2881 | O34: 40.9702 | P34: 40.1465
C35: syn 0.75 | D35: 25 | F35: 43.0477 | G35: 45.5875 | H35: 45.702 | N35: 43.0515 | O35: 45.5824 | P35: 45.6977
D36: 30 | F36: 40.8894 | G36: 43.9663 | H36: 43.7163 | N36: 40.8946 | O36: 43.9631 | P36: 43.7062
D37: 35 | F37: 38.3452 | G37: 42.1546 | H37: 41.6442 | N37: 38.3368 | O37: 42.1513 | P37: 41.6382
D38: 40 | F38: 35.5599 | G38: 40.8143 | H38: 40.1473 | N38: 35.5596 | O38: 40.8134 | P38: 40.1388
C39: syn 1.25 | D39: 25 | F39: 42.9437 | G39: 45.6107 | H39: 45.6871 | N39: 42.9268 | O39: 45.6019 | P39: 45.6752
D40: 30 | F40: 40.789 | G40: 43.9782 | H40: 43.7033 | N40: 40.7787 | O40: 43.9657 | P40: 43.6813
D41: 35 | F41: 38.2419 | G41: 42.1904 | H41: 41.6501 | N41: 38.2346 | O41: 42.1559 | P41: 41.6231
D42: 40 | F42: 35.4376 | G42: 40.8302 | H42: 40.124 | N42: 35.4392 | O42: 40.8062 | P42: 40.1069
C43: syn 1.5 | D43: 25 | F43: 42.7534 | G43: 45.919 | H43: 45.6774 | N43: 42.7498 | O43: 45.8904 | P43: 45.6634
D44: 30 | F44: 40.4997 | G44: 44.1766 | H44: 43.602 | N44: 40.501 | O44: 44.1242 | P44: 43.558
D45: 35 | F45: 37.944 | G45: 42.402 | H45: 41.5987 | N45: 37.9476 | O45: 42.3204 | P45: 41.5453
D46: 40 | F46: 35.1458 | G46: 40.9753 | H46: 40.0267 | N46: 35.1478 | O46: 40.9176 | P46: 39.994
C47: syn 1.75 | D47: 25 | F47: 42.1353 | G47: 45.1813 | H47: 44.9071 | N47: 42.1419 | O47: 45.1503 | P47: 44.9089
D48: 30 | F48: 39.9897 | G48: 43.5292 | H48: 42.9786 | N48: 39.99 | O48: 43.4615 | P48: 42.9339
D49: 35 | F49: 37.5171 | G49: 41.9611 | H49: 41.1971 | N49: 37.5223 | O49: 41.869 | P49: 41.1253
D50: 40 | F50: 34.7967 | G50: 40.6443 | H50: 39.7048 | N50: 34.7968 | O50: 40.5729 | P50: 39.661
C51: overall | D51: 25 | E51: 1795.748 | I51: 38954.48 | J51: 42.71 | K51: 327.48 | M51: 1790.3232 | Q51: 38815.35 | R51: 41.04 | S51: 320.7 | Y51: =GEOMEAN(Q51:Q54)/GEOMEAN(I51:I54) -> 0.9952958365 | Z51: =GEOMEAN(R51:R54)/GEOMEAN(J51:J54) -> 0.9587075856 | AA51: =GEOMEAN(S51:S54)/GEOMEAN(K51:K54) -> 0.9987823354
D52: 30 | E52: 872.54 | I52: 34715.15 | J52: 38.4 | K52: 319.32 | M52: 870.3392 | Q52: 34517.09 | R52: 37 | S52: 324.32
D53: 35 | E53: 482.1496 | I53: 32345.93 | J53: 36.96 | K53: 326.14 | M53: 481.2088 | Q53: 32254.99 | R53: 34.43 | S53: 322.71
D54: 40 | E54: 279.8808 | I54: 30787.05 | J54: 33.61 | K54: 318.54 | M54: 278.984 | Q54: 30580.06 | R54: 32.92 | S54: 322.09
A55: 1024x768 | B55: Kendo | C55: video 0 | D55: 25 | E55: 846.9536 | F55: 43.6076 | G55: 44.9503 | H55: 44.9381 | M55: 846.9536 | N55: 43.6076 | O55: 44.9503 | P55: 44.9381 | U55: =bdrate($E55:$E58,F55:F58,$M55:$M58,N55:N58) -> 0 | V55: =bdrate($E55:$E58,G55:G58,$M55:$M58,O55:O58) -> 0 | W55: =bdrate($E55:$E58,H55:H58,$M55:$M58,P55:P58) -> 0
D56: 30 | E56: 451.1784 | F56: 41.4339 | G56: 44.1125 | H56: 43.4448 | M56: 451.1784 | N56: 41.4339 | O56: 44.1125 | P56: 43.4448
D57: 35 | E57: 256.3984 | F57: 38.9494 | G57: 43.0644 | H57: 41.7837 | M57: 256.3984 | N57: 38.9494 | O57: 43.0644 | P57: 41.7837
D58: 40 | E58: 153.8008 | F58: 36.3182 | G58: 42.2562 | H58: 40.4423 | M58: 153.8008 | N58: 36.3182 | O58: 42.2562 | P58: 40.4423
C59: video 1 | D59: 25 | E59: 289.0248 | F59: 42.7271 | G59: 44.7773 | H59: 44.185 | M59: 288.2304 | N59: 42.7263 | O59: 44.744 | P59: 44.1724 | U59: =bdrate($E59:$E62,F59:F62,$M59:$M62,N59:N62) -> -0.006481977706 | V59: =bdrate($E59:$E62,G59:G62,$M59:$M62,O59:O62) -> 0.02036367428 | W59: =bdrate($E59:$E62,H59:H62,$M59:$M62,P59:P62) -> 0.01262373294
D60: 30 | E60: 133.0104 | F60: 40.411 | G60: 43.8353 | H60: 42.7161 | M60: 131.9472 | N60: 40.4053 | O60: 43.8055 | P60: 42.6679
D61: 35 | E61: 71.6616 | F61: 37.9839 | G61: 42.9309 | H61: 41.359 | M61: 71.2392 | N61: 37.9913 | O61: 42.8849 | P61: 41.3215
D62: 40 | E62: 40.2688 | F62: 35.4285 | G62: 42.0454 | H62: 40.0729 | M62: 39.9696 | N62: 35.4266 | O62: 42.004 | P62: 40.0158
C63: video 2 | D63: 25 | E63: 308.1128 | F63: 42.3559 | G63: 43.9945 | H63: 43.9279 | M63: 305.824 | N63: 42.354 | O63: 43.9482 | P63: 43.9052 | U63: =bdrate($E63:$E66,F63:F66,$M63:$M66,N63:N66) -> -0.01344036152 | V63: =bdrate($E63:$E66,G63:G66,$M63:$M66,O63:O66) -> 0.04164819919 | W63: =bdrate($E63:$E66,H63:H66,$M63:$M66,P63:P66) -> 0.002624066736
D64: 30 | E64: 140.6992 | F64: 40.1491 | G64: 43.0208 | H64: 42.4988 | M64: 138.9 | N64: 40.1512 | O64: 42.9608 | P64: 42.4632
D65: 35 | E65: 75.2904 | F65: 37.7908 | G65: 42.2481 | H65: 41.257 | M65: 74.1616 | N65: 37.7878 | O65: 42.168 | P65: 41.2301
D66: 40 | E66: 41.9224 | F66: 35.2694 | G66: 41.5063 | H66: 40.0168 | M66: 41.3344 | N66: 35.2828 | O66: 41.4153 | P66: 39.9812
C67: depth 0 | D67: 34 | E67: 142.0832 | F67: 39.1326 | M67: 142.0832 | N67: 39.1326 | U67: =bdrate($E67:$E70,F67:F70,$M67:$M70,N67:N70) -> 0
D68: 39 | E68: 50.6424 | F68: 34.4319 | M68: 50.6424 | N68: 34.4319
D69: 42 | E69: 22.3432 | F69: 31.4108 | M69: 22.3432 | N69: 31.4108
D70: 45 | E70: 10.68 | F70: 28.9598 | M70: 10.68 | N70: 28.9598
C71: depth 1 | D71: 34 | E71: 112.4456 | F71: 36.0673 | M71: 113.864 | N71: 36.0508 | U71: =bdrate($E71:$E74,F71:F74,$M71:$M74,N71:N74) -> 0.01651267669
D72: 39 | E72: 37.8704 | F72: 31.8258 | M72: 37.9696 | N72: 31.7836
D73: 42 | E73: 16.5552 | F73: 29.0961 | M73: 16.6288 | N73: 29.0521
D74: 45 | E74: 7.8664 | F74: 26.4742 | M74: 7.94 | N74: 26.4292 | O74: 97.027 | P74: 97.027
C75: depth 2 | D75: 34 | E75: 130.36 | F75: 35.2228 | M75: 131.048 | N75: 35.2067 | U75: =bdrate($E75:$E78,F75:F78,$M75:$M78,N75:N78) -> 0.01282943505
D76: 39 | E76: 42.78 | F76: 31.075 | M76: 43.2776 | N76: 31.0541 | O76: 98.3623 | P76: 98.3623
D77: 42 | E77: 18.4432 | F77: 28.3049 | M77: 18.2248 | N77: 28.2431 | O77: 98.4094 | P77: 98.4094
D78: 45 | E78: 8.8 | F78: 25.6528 | M78: 8.6968 | N78: 25.5483
C79: syn 0.25 | D79: 25 | F79: 42.7634 | G79: 47.0441 | H79: 45.8351 | N79: 42.7536 | O79: 47.0083 | P79: 45.7973
D80: 30 | F80: 40.5293 | G80: 45.8633 | H80: 44.1208 | N80: 40.5166 | O80: 45.8314 | P80: 44.0434
D81: 35 | F81: 38.1861 | G81: 44.709 | H81: 42.5347 | N81: 38.183 | O81: 44.6404 | P81: 42.4811
D82: 40 | F82: 35.6954 | G82: 43.6842 | H82: 41.0977 | N82: 35.6909 | O82: 43.6464 | P82: 41.0535
C83: syn 0.50 | D83: 25 | F83: 43.4231 | G83: 47.6228 | H83: 46.6506 | N83: 43.418 | O83: 47.5947 | P83: 46.6309
D84: 30 | F84: 41.0464 | G84: 46.3494 | H84: 44.8168 | N84: 41.0393 | O84: 46.3357 | P84: 44.7546
D85: 35 | F85: 38.5667 | G85: 45.0395 | H85: 43.022 | N85: 38.5553 | O85: 44.975 | P85: 42.9762
D86: 40 | F86: 35.971 | G86: 43.9206 | H86: 41.473 | N86: 35.964 | O86: 43.9 | P86: 41.4398
C87: syn 0.75 | D87: 25 | F87: 43.6301 | G87: 47.0417 | H87: 46.5536 | N87: 43.6241 | O87: 47.0375 | P87: 46.5426
D88: 30 | F88: 41.3371 | G88: 45.999 | H88: 44.8243 | N88: 41.3333 | O88: 45.9995 | P88: 44.7955
D89: 35 | F89: 38.8528 | G89: 44.7164 | H89: 42.9855 | N89: 38.8402 | O89: 44.7113 | P89: 42.962
D90: 40 | F90: 36.2225 | G90: 43.7386 | H90: 41.4702 | N90: 36.22 | O90: 43.7397 | P90: 41.4524
C91: syn 1.25 | D91: 25 | F91: 43.4426 | G91: 47.0528 | H91: 46.598 | N91: 43.4449 | O91: 47.0292 | P91: 46.5948
D92: 30 | F92: 41.1626 | G92: 46.0257 | H92: 44.8606 | N92: 41.1602 | O92: 46.0114 | P92: 44.8428
D93: 35 | F93: 38.6976 | G93: 44.7561 | H93: 43.0109 | N93: 38.6929 | O93: 44.7468 | P93: 42.9971
D94: 40 | F94: 36.0754 | G94: 43.7881 | H94: 41.4621 | N94: 36.0705 | O94: 43.7869 | P94: 41.4463
C95: syn 1.5 | D95: 25 | F95: 43.1601 | G95: 47.3279 | H95: 46.6164 | N95: 43.1538 | O95: 47.2885 | P95: 46.5956
D96: 30 | F96: 40.8155 | G96: 46.1707 | H96: 44.8029 | N96: 40.8072 | O96: 46.1125 | P96: 44.7551
D97: 35 | F97: 38.3655 | G97: 44.9497 | H97: 43.0261 | N97: 38.3563 | O97: 44.8967 | P97: 43.0136
D98: 40 | F98: 35.7771 | G98: 43.9568 | H98: 41.4435 | N98: 35.7768 | O98: 43.9069 | P98: 41.4188
C99: syn 1.75 | D99: 25 | F99: 42.4513 | G99: 46.3903 | H99: 45.7592 | N99: 42.4358 | O99: 46.3432 | P99: 45.7565
D100: 30 | F100: 40.2777 | G100: 45.2139 | H100: 44.0807 | N100: 40.2689 | O100: 45.177 | P100: 44.028
D101: 35 | F101: 37.9507 | G101: 44.1994 | H101: 42.5339 | N101: 37.9453 | O101: 44.1721 | P101: 42.521
D102: 40 | F102: 35.461 | G102: 43.3321 | H102: 41.0689 | N102: 35.469 | O102: 43.3351 | P102: 41.0461
C103: overall | D103: 25 | E103: 1834.7768 | I103: 41141.65 | J103: 40.29 | K103: 315.49 | M103: 1833.8 | Q103: 39942.98 | R103: 39.65 | S103: 307.58 | Y103: =GEOMEAN(Q103:Q106)/GEOMEAN(I103:I106) -> 0.9856582174 | Z103: =GEOMEAN(R103:R106)/GEOMEAN(J103:J106) -> 1.003392372 | AA103: =GEOMEAN(S103:S106)/GEOMEAN(K103:K106) -> 0.9983076993
D104: 30 | E104: 861.9776 | I104: 36079.62 | J104: 35.85 | K104: 311.32 | M104: 859.712 | Q104: 35527.18 | R104: 35.67 | S104: 307.66
D105: 35 | E105: 466.4888 | I105: 33471.81 | J105: 33.27 | K105: 315.06 | M105: 464.7928 | Q105: 33135.9 | R105: 33.92 | S105: 319.37
D106: 40 | E106: 269.1352 | I106: 31655.02 | J106: 31.9 | K106: 312.38 | M106: 268.2184 | Q106: 31569.73 | R106: 32.39 | S106: 317.69
A107: 1024x768 | B107: Newspaper_CC | C107: video 0 | D107: 25 | E107: 950.0112 | F107: 41.3546 | G107: 44.1488 | H107: 44.2193 | M107: 950.0112 | N107: 41.3546 | O107: 44.1488 | P107: 44.2193 | U107: =bdrate($E107:$E110,F107:F110,$M107:$M110,N107:N110) -> 0 | V107: =bdrate($E107:$E110,G107:G110,$M107:$M110,O107:O110) -> 0 | W107: =bdrate($E107:$E110,H107:H110,$M107:$M110,P107:P110) -> 0
D108: 30 | E108: 499.9248 | F108: 38.9945 | G108: 42.5197 | H108: 42.5466 | M108: 499.9248 | N108: 38.9945 | O108: 42.5197 | P108: 42.5466
D109: 35 | E109: 275.4568 | F109: 36.4509 | G109: 40.7709 | H109: 40.7054 | M109: 275.4568 | N109: 36.4509 | O109: 40.7709 | P109: 40.7054
D110: 40 | E110: 159.5672 | F110: 33.878 | G110: 39.5134 | H110: 39.395 | M110: 159.5672 | N110: 33.878 | O110: 39.5134 | P110: 39.395
C111: video 1 | D111: 25 | E111: 317.3304 | F111: 40.3224 | G111: 42.9736 | H111: 43.0846 | M111: 317.5584 | N111: 40.3173 | O111: 42.9596 | P111: 43.0782 | U111: =bdrate($E111:$E114,F111:F114,$M111:$M114,N111:N114) -> 0.0001042919201 | V111: =bdrate($E111:$E114,G111:G114,$M111:$M114,O111:O114) -> 0.01568179515 | W111: =bdrate($E111:$E114,H111:H114,$M111:$M114,P111:P114) -> 0.003389682252
D112: 30 | E112: 137.7624 | F112: 37.9867 | G112: 41.3424 | H112: 41.4642 | M112: 138.1944 | N112: 37.9905 | O112: 41.3117 | P112: 41.4697
D113: 35 | E113: 70.4112 | F113: 35.5553 | G113: 40.0654 | H113: 40.0772 | M113: 70.2248 | N113: 35.5532 | O113: 40.0366 | P113: 40.0603
D114: 40 | E114: 39.0864 | F114: 33.1514 | G114: 38.9886 | H114: 38.9623 | M114: 39.0616 | N114: 33.1537 | O114: 38.9488 | P114: 38.9474
C115: video 2 | D115: 25 | E115: 362.9152 | F115: 39.9232 | G115: 42.8762 | H115: 42.772 | M115: 361.26 | N115: 39.9205 | O115: 42.8576 | P115: 42.7545 | U115: =bdrate($E115:$E118,F115:F118,$M115:$M118,N115:N118) -> -0.00555907414 | V115: =bdrate($E115:$E118,G115:G118,$M115:$M118,O115:O118) -> -0.001506376396 | W115: =bdrate($E115:$E118,H115:H118,$M115:$M118,P115:P118) -> 0.001524856417
D116: 30 | E116: 159.4744 | F116: 37.5483 | G116: 41.3809 | H116: 41.1088 | M116: 159.248 | N116: 37.5528 | O116: 41.3832 | P116: 41.1207
D117: 35 | E117: 81.8536 | F117: 35.0936 | G117: 40.1111 | H117: 39.7128 | M117: 81.3216 | N117: 35.0996 | O117: 40.0986 | P117: 39.6786
D118: 40 | E118: 44.8664 | F118: 32.5766 | G118: 39.073 | H118: 38.6185 | M118: 44.5544 | N118: 32.5811 | O118: 39.0847 | P118: 38.5958
C119: depth 0 | D119: 34 | E119: 184.6208 | F119: 38.3514 | M119: 184.6208 | N119: 38.3514 | U119: =bdrate($E119:$E122,F119:F122,$M119:$M122,N119:N122) -> 0
D120: 39 | E120: 64.1968 | F120: 35.1818 | M120: 64.1968 | N120: 35.1818
D121: 42 | E121: 27.1136 | F121: 32.4883 | M121: 27.1136 | N121: 32.4883
D122: 45 | E122: 12.5712 | F122: 29.5037 | M122: 12.5712 | N122: 29.5037
C123: depth 1 | D123: 34 | E123: 120.9632 | F123: 37.5449 | M123: 121.4416 | N123: 37.531 | U123: =bdrate($E123:$E126,F123:F126,$M123:$M126,N123:N126) -> 0.007497803162
D124: 39 | E124: 43.948 | F124: 34.3156 | M124: 44.1144 | N124: 34.3213
D125: 42 | E125: 19.3744 | F125: 31.5237 | M125: 19.4008 | N125: 31.4642
D126: 45 | E126: 8.9408 | F126: 28.1354 | M126: 9.0408 | N126: 28.2161
C127: depth 2 | D127: 34 | E127: 107.9968 | F127: 37.3717 | M127: 109.4048 | N127: 37.3942 | U127: =bdrate($E127:$E130,F127:F130,$M127:$M130,N127:N130) -> 0.00767685001
D128: 39 | E128: 36.2696 | F128: 34.2418 | M128: 36.6568 | N128: 34.2123
D129: 42 | E129: 16.1632 | F129: 31.5474 | M129: 16.1888 | N129: 31.5597
D130: 45 | E130: 7.8856 | F130: 28.4601 | M130: 7.8648 | N130: 28.4422
C131: syn 0.25 | D131: 25 | F131: 39.9542 | G131: 45.2796 | H131: 45.4514 | N131: 39.9531 | O131: 45.2709 | P131: 45.4506
D132: 30 | F132: 37.7921 | G132: 43.5057 | H132: 43.6488 | N132: 37.7952 | O132: 43.4616 | P132: 43.6451
D133: 35 | F133: 35.5191 | G133: 41.9204 | H133: 41.9107 | N133: 35.5184 | O133: 41.902 | P133: 41.9056
D134: 40 | F134: 33.1149 | G134: 40.5524 | H134: 40.5159 | N134: 33.1472 | O134: 40.5228 | P134: 40.5221
C135: syn 0.50 | D135: 25 | F135: 40.4398 | G135: 46.1269 | H135: 46.1754 | N135: 40.4367 | O135: 46.1219 | P135: 46.1662
D136: 30 | F136: 38.1731 | G136: 44.2704 | H136: 44.2562 | N136: 38.1701 | O136: 44.2313 | P136: 44.2481
D137: 35 | F137: 35.7881 | G137: 42.4349 | H137: 42.2757 | N137: 35.7841 | O137: 42.4193 | P137: 42.2661
D138: 40 | F138: 33.2345 | G138: 40.9133 | H138: 40.7458 | N138: 33.3212 | O138: 40.8917 | P138: 40.7503
C139: syn 0.75 | D139: 25 | F139: 40.913 | G139: 46.0235 | H139: 46.0965 | N139: 40.9083 | O139: 46.0214 | P139: 46.0924
D140: 30 | F140: 38.6431 | G140: 44.268 | H140: 44.2522 | N140: 38.6351 | O140: 44.2633 | P140: 44.2416
D141: 35 | F141: 36.1819 | G141: 42.3472 | H141: 42.2081 | N141: 36.1815 | O141: 42.3429 | P141: 42.1965
D142: 40 | F142: 33.5363 | G142: 40.8384 | H142: 40.6887 | N142: 33.6685 | O142: 40.8316 | P142: 40.6826
C143: syn 1.25 | D143: 25 | F143: 40.8821 | G143: 45.8707 | H143: 45.9556 | N143: 40.8693 | O143: 45.8572 | P143: 45.943
D144: 30 | F144: 38.5616 | G144: 44.0867 | H144: 44.0656 | N144: 38.566 | O144: 44.0704 | P144: 44.0593
D145: 35 | F145: 36.1208 | G145: 42.1802 | H145: 42.0015 | N145: 36.1184 | O145: 42.1649 | P145: 41.9822
D146: 40 | F146: 33.5985 | G146: 40.7353 | H146: 40.4962 | N146: 33.6059 | O146: 40.7265 | P146: 40.4937
C147: syn 1.5 | D147: 25 | F147: 40.2604 | G147: 45.9095 | H147: 45.8952 | N147: 40.2339 | O147: 45.8869 | P147: 45.8588
D148: 30 | F148: 37.9424 | G148: 44.0788 | H148: 43.904 | N148: 37.945 | O148: 44.0664 | P148: 43.8882
D149: 35 | F149: 35.5569 | G149: 42.2417 | H149: 41.9019 | N149: 35.5533 | O149: 42.2181 | P149: 41.8591
D150: 40 | F150: 33.0614 | G150: 40.7889 | H150: 40.3971 | N150: 33.0672 | O150: 40.8002 | P150: 40.3886
C151: syn 1.75 | D151: 25 | F151: 39.9475 | G151: 45.0903 | H151: 45.0594 | N151: 39.9447 | O151: 45.0792 | P151: 45.0321
D152: 30 | F152: 37.6093 | G152: 43.3873 | H152: 43.1431 | N152: 37.6175 | O152: 43.398 | P152: 43.1376
D153: 35 | F153: 35.1984 | G153: 41.8027 | H153: 41.3753 | N153: 35.2047 | O153: 41.7826 | P153: 41.3438
D154: 40 | F154: 32.6958 | G154: 40.486 | H154: 39.9894 | N154: 32.7085 | O154: 40.5052 | P154: 39.9851
C155: overall | D155: 25 | E155: 2049.6344 | I155: 36811.67 | J155: 35.97 | K155: 323.2 | M155: 2050.0936 | Q155: 36659.48 | R155: 34.75 | S155: 309.54 | Y155: =GEOMEAN(Q155:Q158)/GEOMEAN(I155:I158) -> 0.9978032682 | Z155: =GEOMEAN(R155:R158)/GEOMEAN(J155:J158) -> 0.9454495868 | AA155: =GEOMEAN(S155:S158)/GEOMEAN(K155:K158) -> 0.973605446
D156: 30 | E156: 947.3728 | I156: 33089.08 | J156: 33.46 | K156: 322.33 | M156: 948.132 | Q156: 32999.96 | R156: 31.65 | S156: 313.5
D157: 35 | E157: 496.1696 | I157: 31204.85 | J157: 32.85 | K157: 327.54 | M157: 495.5032 | Q157: 31148.26 | R157: 30.25 | S157: 313.39
D158: 40 | E158: 278.7144 | I158: 30011.95 | J158: 31.89 | K158: 319.9 | M158: 278.4568 | Q158: 30007.7 | R158: 30.28 | S158: 322.51
A159: 1920x1088 | B159: GT_Fly | C159: video 0 | D159: 25 | E159: 3708.536 | F159: 40.2517 | G159: 45.4565 | H159: 46.2964 | M159: 3708.536 | N159: 40.2517 | O159: 45.4565 | P159: 46.2964 | U159: =bdrate($E159:$E162,F159:F162,$M159:$M162,N159:N162) -> 0 | V159: =bdrate($E159:$E162,G159:G162,$M159:$M162,O159:O162) -> 0 | W159: =bdrate($E159:$E162,H159:H162,$M159:$M162,P159:P162) -> 0
D160: 30 | E160: 1617.744 | F160: 37.8229 | G160: 43.6378 | H160: 44.4538 | M160: 1617.744 | N160: 37.8229 | O160: 43.6378 | P160: 44.4538
D161: 35 | E161: 756.516 | F161: 35.623 | G161: 41.7884 | H161: 42.6221 | M161: 756.516 | N161: 35.623 | O161: 41.7884 | P161: 42.6221
D162: 40 | E162: 365.44 | F162: 33.4642 | G162: 40.571 | H162: 41.3993 | M162: 365.44 | N162: 33.4642 | O162: 40.571 | P162: 41.3993
C163: video 1 | D163: 25 | E163: 553.8576 | F163: 39.751 | G163: 45.3394 | H163: 46.1866 | M163: 553.452 | N163: 39.7503 | O163: 45.3392 | P163: 46.1863 | U163: =bdrate($E163:$E166,F163:F166,$M163:$M166,N163:N166) -> -0.0001885899983 | V163: =bdrate($E163:$E166,G163:G166,$M163:$M166,O163:O166) -> -0.0002703870607 | W163: =bdrate($E163:$E166,H163:H166,$M163:$M166,P163:P166) -> -0.0002698829314
D164: 30 | E164: 205.8344 | F164: 37.4845 | G164: 43.5891 | H164: 44.4103 | M164: 205.812 | N164: 37.4846 | O164: 43.5894 | P164: 44.4105
D165: 35 | E165: 93.1432 | F165: 35.3989 | G165: 41.7914 | H165: 42.6349 | M165: 93.1232 | N165: 35.399 | O165: 41.7915 | P165: 42.6352
D166: 40 | E166: 43.9024 | F166: 33.3102 | G166: 40.5666 | H166: 41.403 | M166: 43.9088 | N166: 33.3103 | O166: 40.5666 | P166: 41.4029
C167: video 2 | D167: 25 | E167: 576.796 | F167: 39.7187 | G167: 45.3004 | H167: 46.1534 | M167: 576.7472 | N167: 39.719 | O167: 45.3003 | P167: 46.1535 | U167: =bdrate($E167:$E170,F167:F170,$M167:$M170,N167:N170) -> -0.0002702139787 | V167: =bdrate($E167:$E170,G167:G170,$M167:$M170,O167:O170) -> -0.0001691259043 | W167: =bdrate($E167:$E170,H167:H170,$M167:$M170,P167:P170) -> -0.0001275679354
D168: 30 | E168: 215.876 | F168: 37.4429 | G168: 43.5444 | H168: 44.3752 | M168: 215.8264 | N168: 37.4428 | O168: 43.5441 | P168: 44.3747
D169: 35 | E169: 98.5936 | F169: 35.3459 | G169: 41.7488 | H169: 42.5902 | M169: 98.5832 | N169: 35.3461 | O169: 41.7489 | P169: 42.5902
D170: 40 | E170: 47.0664 | F170: 33.2486 | G170: 40.5203 | H170: 41.3623 | M170: 47.0264 | N170: 33.2486 | O170: 40.5203 | P170: 41.3623
C171: depth 0 | D171: 34 | E171: 268.46 | F171: 43.0994 | M171: 268.46 | N171: 43.0994 | U171: =bdrate($E171:$E174,F171:F174,$M171:$M174,N171:N174) -> 0
D172: 39 | E172: 97.924 | F172: 39.1169 | M172: 97.924 | N172: 39.1169
D173: 42 | E173: 41.8808 | F173: 35.2062 | M173: 41.8808 | N173: 35.2062
D174: 45 | E174: 18.7728 | F174: 31.9794 | M174: 18.7728 | N174: 31.9794
C175: depth 1 | D175: 34 | E175: 84.0008 | F175: 42.3926 | M175: 83.3088 | N175: 42.4011 | U175: =bdrate($E175:$E178,F175:F178,$M175:$M178,N175:N178) -> -0.006111528343
D176: 39 | E176: 26.7648 | F176: 38.5948 | M176: 26.5464 | N176: 38.5893 | O176: 99.7825 | P176: 99.7825
D177: 42 | E177: 12.2208 | F177: 34.8318 | M177: 12.0664 | N177: 34.7832 | O177: 99.5589 | P177: 99.5589
D178: 45 | E178: 6.5048 | F178: 31.4858 | M178: 6.4768 | N178: 31.5003 | O178: 97.0435 | P178: 97.0435
C179: depth 2 | D179: 34 | E179: 86.6168 | F179: 42.387 | M179: 86.48 | N179: 42.3932 | O179: 99.7223 | P179: 99.7223 | U179: =bdrate($E179:$E182,F179:F182,$M179:$M182,N179:N182) -> 0.001041210276
D180: 39 | E180: 27.9936 | F180: 38.581 | M180: 27.8624 | N180: 38.5897
D181: 42 | E181: 12.6056 | F181: 34.8874 | M181: 12.6624 | N181: 34.8536 | O181: 99.2341 | P181: 99.2341
D182: 45 | E182: 6.4792 | F182: 31.659 | M182: 6.4912 | N182: 31.6574
C183: syn 0.25 | D183: 25 | F183: 39.715 | G183: 46.5098 | H183: 46.4439 | N183: 39.7149 | O183: 46.5111 | P183: 46.4441
D184: 30 | F184: 37.5193 | G184: 44.7271 | H184: 44.9892 | N184: 37.5192 | O184: 44.7272 | P184: 44.9921
D185: 35 | F185: 35.4686 | G185: 42.7492 | H185: 43.2995 | N185: 35.4698 | O185: 42.7496 | P185: 43.3022
D186: 40 | F186: 33.3868 | G186: 41.4279 | H186: 42.0629 | N186: 33.3867 | O186: 41.4287 | P186: 42.0639
C187: syn 0.50 | D187: 25 | F187: 39.8802 | G187: 46.3003 | H187: 46.7328 | N187: 39.8812 | O187: 46.2998 | P187: 46.7361
D188: 30 | F188: 37.6547 | G188: 44.6493 | H188: 45.1612 | N188: 37.6546 | O188: 44.6481 | P188: 45.1614
D189: 35 | F189: 35.5511 | G189: 42.7751 | H189: 43.4178 | N189: 35.5522 | O189: 42.776 | P189: 43.4171
D190: 40 | F190: 33.423 | G190: 41.4921 | H190: 42.1386 | N190: 33.4233 | O190: 41.4926 | P190: 42.1387
C191: syn 0.75 | D191: 25 | F191: 40.1402 | G191: 46.9368 | H191: 47.7758 | N191: 40.144 | O191: 46.9375 | P191: 47.7758
D192: 30 | F192: 37.79 | G192: 45.0466 | H192: 45.8501 | N192: 37.7897 | O192: 45.0468 | P192: 45.8501
D193: 35 | F193: 35.6296 | G193: 43.0176 | H193: 43.8221 | N193: 35.6304 | O193: 43.018 | P193: 43.8225
D194: 40 | F194: 33.4809 | G194: 41.6654 | H194: 42.4486 | N194: 33.4808 | O194: 41.6654 | P194: 42.4484
C195: syn 1.25 | D195: 25 | F195: 40.1153 | G195: 46.9407 | H195: 47.7709 | N195: 40.1156 | O195: 46.941 | P195: 47.7712
D196: 30 | F196: 37.7698 | G196: 45.0449 | H196: 45.8396 | N196: 37.7696 | O196: 45.0444 | P196: 45.8388
D197: 35 | F197: 35.6134 | G197: 43.0122 | H197: 43.807 | N197: 35.6139 | O197: 43.0126 | P197: 43.8074
D198: 40 | F198: 33.4727 | G198: 41.6589 | H198: 42.4307 | N198: 33.4723 | O198: 41.6593 | P198: 42.431
C199: syn 1.5 | D199: 25 | F199: 39.8867 | G199: 46.2567 | H199: 46.9858 | N199: 39.8863 | O199: 46.2564 | P199: 46.9822
D200: 30 | F200: 37.6371 | G200: 44.6151 | H200: 45.324 | N200: 37.6375 | O200: 44.6145 | P200: 45.3225
... 419 more rows
